fUST/lending_fUST_20240521
["ID","MTS","AMOUNT","RATE_DAILY","PERIOD"]
[327624826,1716256268946,-1090.23,0.00044931,44]
[327624827,1716256268955,-500.0,0.00044931,44]
[327624828,1716256268965,-1090.8,0.00044931,44]
[327624829,1716256268974,-500.0,0.00044931,44]
[327624830,1716256268984,-774.07,0.00044931,44]
[327624831,1716256268994,-500.0,0.00044931,44]
[327624832,1716256269003,-500.0,0.00044931,44]
[327624833,1716256269013,-2075.97,0.00044931,44]
[327624834,1716256269023,-500.0,0.00044931,44]
[327624835,1716256269033,-695.68,0.00044931,44]
[327624836,1716256269042,-500.0,0.00044931,44]
[327624837,1716256269052,-846.21,0.00044931,44]
[327624838,1716256269061,-500.0,0.00044931,44]
[327624839,1716256269071,-500.0,0.00044931,44]
[327624840,1716256269080,-300.0,0.00044946,7]
[327624841,1716256269090,-153.0,0.00044959,2]
[327624842,1716256269099,-220.62361237,0.00044999,120]
[327624843,1716256269108,-5491.19509573,0.00045,4]
[327624844,1716256269117,-200.0,0.00045,5]
[327624845,1716256269127,-1500.0,0.00045,2]
[327624846,1716256269137,-1500.0,0.00045,2]
[327624847,1716256269147,-1500.0,0.00045,2]
[327624848,1716256269156,-1500.0,0.00045,2]
[327624849,1716256269166,-1552.9,0.00045,2]
[327624850,1716256269175,-1500.0,0.00045,2]
[327624851,1716256269185,-180.02086771,0.00045,2]
[327624852,1716256269195,-154.93802479,0.00045,4]
[327624853,1716256269206,-151.0,0.00045,120]
[327624854,1716256269215,-6099.6402278,0.00045,120]
[327624855,1716256269225,-281.0,0.00045,21]
[327624856,1716256269235,-563.0,0.00045,21]
[327624857,1716256269247,-563.0,0.00045,21]
[327624858,1716256269257,-563.0,0.00045,21]
[327624859,1716256269267,-160.0,0.00045,31]
[327624860,1716256269277,-200.69845331,0.00045,120]
[327624861,1716256269287,-501.37371379,0.00045,120]
[327624862,1716256269296,-1000.0,0.00045,30]
[327624863,1716256269306,-821.88337579,0.00045,20]
[327624864,1716256269315,-321.80725519,0.00045,111]
[327624865,1716256269325,-281.0,0.00045,21]
[327624866,1716256269335,-171.163985,0.00045,2]
[327624867,1716256269344,-507.0,0.00045,30]
[327624868,1716256269354,-200.0,0.00045037,120]
[327624869,1716256269364,-200.0,0.00045094,120]
[327624870,1716256269374,-259.0,0.00045175,35]
[327624871,1716256269384,-150.5,0.00045185,35]
[327624872,1716256269393,-150.5,0.00045185,35]
[327624873,1716256269403,-150.5,0.00045185,35]
[327624874,1716256269414,-259.0,0.00045185,35]
[327624875,1716256269424,-150.5,0.00045195,35]
[327624876,1716256269434,-150.5,0.00045195,35]
[327624877,1716256269445,-150.5,0.00045195,35]
[327624878,1716256269455,-259.0,0.00045195,35]
[327624879,1716256269465,-500.0,0.00045205,45]
[327624880,1716256269476,-500.0,0.00045205,7]
[327624881,1716256269487,-500.0,0.00045205,45]
[327624882,1716256269501,-502.27932883,0.00045205,45]
[327624883,1716256269512,-767.25,0.00045205,45]
[327624884,1716256269526,-527.86224145,0.00045205,45]
[327624885,1716256269536,-500.0,0.00045205,45]
[327624886,1716256269547,-837.43,0.00045205,45]
[327624887,1716256269641,-650.81,0.00045205,45]
[327624888,1716256269651,-500.0,0.00045205,45]
[327624889,1716256269661,-500.0,0.00045205,45]
[327624890,1716256269670,-597.94,0.00045205,45]
[327624891,1716256269680,-500.0,0.00045205,45]
[327624892,1716256269689,-500.0,0.00045205,45]
[327624893,1716256269698,-500.0,0.00045205,45]
[327624894,1716256269709,-500.0,0.00045205,45]
[327624895,1716256269718,-500.0,0.00045205,45]
[327624896,1716256269727,-500.0,0.00045205,45]
[327624897,1716256269737,-500.0,0.00045205,45]
[327624898,1716256269749,-500.0,0.00045205,45]
[327624899,1716256269759,-559.54,0.00045205,45]
[327624900,1716256269768,-622.99,0.00045205,45]
[327624901,1716256269778,-517.14684973,0.00045205,45]
[327624902,1716256269787,-500.0,0.00045205,45]
[327624903,1716256269796,-500.0,0.00045205,45]
[327624904,1716256269805,-430.3061767,0.00045205,45]
[327624905,1716256269814,-500.0,0.00045205,45]
[327624906,1716256269823,-500.0,0.00045205,45]
[327624907,1716256269832,-500.0,0.00045205,45]
[327624908,1716256269841,-500.0,0.00045205,45]
[327624909,1716256269851,-500.0,0.00045205,45]
[327624910,1716256269860,-500.0,0.00045205,45]
[327624911,1716256269869,-500.0,0.00045205,45]
[327624912,1716256269879,-789.44,0.00045205,45]
[327624913,1716256269888,-540.7,0.00045205,45]
[327624914,1716256269898,-500.0,0.00045205,45]
[327624915,1716256269907,-596.6,0.00045205,45]
[327624916,1716256269916,-500.0,0.00045205,45]
[327624917,1716256269926,-500.0,0.00045205,45]
[327624918,1716256269935,-702.31,0.00045205,45]
[327624919,1716256269945,-571.41528677,0.00045205,45]
[327624920,1716256269954,-985.17,0.00045205,45]
[327624921,1716256269963,-1198.71,0.00045205,45]
[327624922,1716256269973,-500.0,0.00045205,2]
[327624923,1716256269983,-500.0,0.00045205,45]
[327624924,1716256269995,-500.0,0.00045205,45]
[327624925,1716256270005,-500.0,0.00045205,45]
[327624926,1716256270015,-889.02,0.00045205,45]
[327624927,1716256270024,-698.24,0.00045205,45]
[327624928,1716256270034,-500.0,0.00045205,45]
[327624929,1716256270043,-676.37,0.00045205,45]
[327624930,1716256270053,-500.0,0.00045205,45]
[327624931,1716256270062,-724.9,0.00045205,45]
[327624932,1716256270072,-803.48,0.00045205,45]
[327624933,1716256270081,-500.0,0.00045205,45]
[327624934,1716256270091,-500.0,0.00045205,45]
[327624935,1716256270100,-500.0,0.00045205,45]
[327624936,1716256270110,-500.0,0.00045205,45]
[327624937,1716256270119,-820.9,0.00045205,45]
[327624938,1716256270128,-500.0,0.00045205,45]
[327624939,1716256270137,-655.92,0.00045205,45]
[327624940,1716256270147,-500.0,0.00045205,45]
[327624941,1716256270156,-500.0,0.00045205,45]
[327624942,1716256270165,-500.0,0.00045205,45]
[327624943,1716256270175,-500.0,0.00045205,45]
[327624944,1716256270185,-671.89,0.00045205,45]
[327624945,1716256270194,-520.46,0.00045205,45]
[327624946,1716256270204,-500.0,0.00045205,45]
[327624947,1716256270214,-723.43,0.00045205,45]
[327624948,1716256270223,-500.0,0.00045205,45]
[327624949,1716256270232,-500.0,0.00045205,45]
[327624950,1716256270242,-949.87,0.00045205,45]
[327624951,1716256270251,-684.86,0.00045205,45]
[327624952,1716256270260,-778.84,0.00045205,45]
[327624953,1716256270269,-500.0,0.00045205,45]
[327624954,1716256270280,-723.49,0.00045205,45]
[327624955,1716256270289,-797.35,0.00045205,45]
[327624956,1716256270298,-861.17,0.00045205,45]
[327624957,1716256270308,-994.81,0.00045205,45]
[327624958,1716256270317,-736.19,0.00045205,45]
[327624959,1716256270327,-500.0,0.00045205,45]
[327624960,1716256270336,-500.0,0.00045205,45]
[327624961,1716256270346,-585.89,0.00045205,45]
[327624962,1716256270356,-798.18,0.00045205,45]
[327624963,1716256270365,-706.53,0.00045205,45]
[327624964,1716256270374,-500.0,0.00045205,45]
[327624965,1716256270384,-500.0,0.00045205,45]
[327624966,1716256270393,-500.0,0.00045205,45]
[327624967,1716256270402,-500.0,0.00045205,45]
[327624968,1716256270412,-526.95,0.00045205,45]
[327624969,1716256270421,-500.0,0.00045205,45]
[327624970,1716256270430,-539.51113803,0.00045205,45]
[327624971,1716256270441,-500.0,0.00045205,45]
[327624972,1716256270451,-761.38,0.00045205,45]
[327624973,1716256270461,-699.03,0.00045205,45]
[327624974,1716256270471,-500.0,0.00045205,45]
[327624975,1716256270480,-668.01,0.00045205,45]
[327624976,1716256270490,-983.04,0.00045205,45]
[327624977,1716256270500,-500.0,0.00045205,45]
[327624978,1716256270510,-629.52310382,0.00045205,45]
[327624979,1716256270524,-500.0,0.00045205,45]
[327624980,1716256270533,-500.0,0.00045205,45]
[327624981,1716256270543,-640.06,0.00045205,45]
[327624982,1716256270552,-557.05,0.00045205,45]
[327624983,1716256270562,-1324.9,0.00045205,45]
[327624984,1716256270572,-634.01,0.00045205,45]
[327624985,1716256270581,-512.82,0.00045205,45]
[327624986,1716256270591,-655.25,0.00045205,45]
[327624987,1716256270600,-500.0,0.00045205,45]
[327624988,1716256270611,-500.0,0.00045205,45]
[327624989,1716256270621,-500.0,0.00045205,45]
[327624990,1716256270632,-820.76,0.00045205,45]
[327624991,1716256270642,-500.0,0.00045205,45]
[327624992,1716256270651,-500.0,0.00045205,45]
[327624993,1716256270661,-500.0,0.00045205,45]
[327624994,1716256270671,-500.0,0.00045205,45]
[327624995,1716256270680,-516.18474531,0.00045205,45]
[327624996,1716256270691,-371.46399569,0.00045205,45]
[327624997,1716256270700,-500.0,0.00045205,45]
[327624998,1716256270709,-1050.19,0.00045205,45]
[327624999,1716256270719,-500.0,0.00045205,45]
[327625000,1716256270729,-500.0,0.00045205,45]
[327625001,1716256270738,-500.0,0.00045205,45]
[327625002,1716256270750,-500.0,0.00045205,45]
[327625003,1716256270759,-500.0,0.00045205,45]
[327625004,1716256270768,-578.19,0.00045205,45]
[327625005,1716256270777,-500.0,0.00045205,45]
[327625006,1716256270787,-500.0,0.00045205,14]
[327625007,1716256270796,-500.0,0.00045205,2]
[327625008,1716256270805,-868.84,0.00045205,45]
[327625009,1716256270815,-560.94,0.00045205,45]
[327625010,1716256270824,-500.0,0.00045205,45]
[327625011,1716256270833,-500.0,0.00045205,45]
[327625012,1716256270843,-3015.8,0.00045205,45]
[327625013,1716256270852,-500.0,0.00045205,45]
[327625014,1716256270861,-500.0,0.00045205,120]
[327625015,1716256270871,-742.5,0.00045205,45]
[327625016,1716256270880,-1312.06,0.00045205,45]
[327625017,1716256270889,-500.0,0.00045205,45]
[327625018,1716256270898,-672.9,0.00045205,45]
[327625019,1716256270908,-500.0,0.00045205,45]
[327625020,1716256270917,-1721.54,0.00045205,45]
[327625021,1716256270927,-537.17,0.00045205,45]
[327625022,1716256270936,-1288.56,0.00045205,45]
[327625023,1716256271023,-500.0,0.00045205,45]
[327625024,1716256271033,-2966.04,0.00045205,45]
[327625025,1716256271043,-500.0,0.00045205,45]
[327625026,1716256271052,-800.58,0.00045205,45]
[327625027,1716256271062,-519.32,0.00045205,45]
[327625028,1716256271071,-1101.76,0.00045205,45]
[327625029,1716256271080,-571.16,0.00045205,45]
[327625030,1716256271090,-3000.0,0.00045205,30]
[327625031,1716256271099,-500.0,0.00045205,45]
[327625032,1716256271108,-418.18202919,0.00045205,45]
[327625033,1716256271118,-679.77,0.00045205,45]
[327625034,1716256271127,-500.0,0.00045205,45]
[327625035,1716256271137,-500.0,0.00045205,45]
[327625036,1716256271146,-3098.74,0.00045205,45]
[327625037,1716256271155,-573.79,0.00045205,45]
[327625038,1716256271165,-740.22,0.00045205,45]
[327625039,1716256271174,-500.0,0.00045205,45]
[327625040,1716256271184,-946.03,0.00045205,45]
[327625041,1716256271194,-520.3,0.00045205,45]
[327625042,1716256271203,-500.0,0.00045205,45]
[327625043,1716256271212,-683.12,0.00045205,45]
[327625044,1716256271222,-1857.09,0.00045205,45]
[327625045,1716256271231,-815.0,0.00045205,45]
[327625046,1716256271240,-500.0,0.00045205,45]
[327625047,1716256271250,-504.58,0.00045205,45]
[327625048,1716256271259,-725.35,0.00045205,45]
[327625049,1716256271268,-1095.12,0.00045205,45]
[327625050,1716256271278,-758.0,0.00045205,45]
[327625051,1716256271287,-10687.91,0.00045205,45]
[327625052,1716256271297,-3071.22,0.00045205,7]
[327625053,1716256271305,-1953.62,0.00045205,45]
[327625054,1716256271314,-500.0,0.00045205,45]
[327625055,1716256271323,-621.32,0.00045205,45]
[327625056,1716256271333,-871.95,0.00045205,7]
[327625057,1716256271342,-711.26,0.00045205,45]
[327625058,1716256271351,-500.0,0.00045205,45]
[327625059,1716256271360,-779.29,0.00045205,45]
[327625060,1716256271370,-500.0,0.00045205,45]
[327625061,1716256271379,-500.0,0.00045205,45]
[327625062,1716256271388,-500.0,0.00045205,45]
[327625063,1716256271398,-500.0,0.00045205,45]
[327625064,1716256271407,-702.98,0.00045205,45]
[327625065,1716256271416,-746.5,0.00045205,45]
[327625066,1716256271426,-500.0,0.00045205,45]
[327625067,1716256271435,-4569.8,0.00045205,45]
[327625068,1716256271444,-369.04880037,0.00045205,45]
[327625069,1716256271454,-558.71,0.00045205,45]
[327625070,1716256271463,-500.0,0.00045205,45]
[327625071,1716256271472,-655.44,0.00045205,45]
[327625072,1716256271482,-979.85,0.00045205,45]
[327625073,1716256271492,-616.35,0.00045205,45]
[327625074,1716256271501,-500.0,0.00045205,45]
[327625075,1716256271511,-500.0,0.00045205,45]
[327625076,1716256271520,-860.47,0.00045205,45]
[327625077,1716256271532,-500.0,0.00045205,45]
[327625078,1716256271541,-701.3,0.00045205,45]
[327625079,1716256271551,-621.4,0.00045205,45]
[327625080,1716256271560,-500.0,0.00045205,45]
[327625081,1716256271569,-5043.45,0.00045205,45]
[327625082,1716256271578,-500.0,0.00045205,45]
[327625083,1716256271587,-500.0,0.00045205,45]
[327625084,1716256271598,-500.0,0.00045205,45]
[327625085,1716256271608,-680.66,0.00045205,45]
[327625086,1716256271619,-905.75,0.00045205,45]
[327625087,1716256271628,-563.70817329,0.00045205,45]
[327625088,1716256271638,-668.38,0.00045205,45]
[327625089,1716256271647,-500.0,0.00045205,45]
[327625090,1716256271656,-4536.56,0.00045205,45]
[327625091,1716256271665,-960.25,0.00045205,45]
[327625092,1716256271674,-634.52,0.00045205,45]
[327625093,1716256271683,-530.04,0.00045205,45]
[327625094,1716256271692,-500.0,0.00045205,45]
[327625095,1716256271701,-500.0,0.00045205,45]
[327625096,1716256271710,-1213.79,0.00045205,45]
[327625097,1716256271720,-815.37,0.00045205,45]
[327625098,1716256271729,-697.34,0.00045205,45]
[327625099,1716256271738,-500.0,0.00045205,45]
[327625100,1716256271749,-500.0,0.00045205,45]
[327625101,1716256271758,-704.21,0.00045205,45]
[327625102,1716256271767,-500.0,0.00045205,20]
[327625103,1716256271776,-543.69,0.00045205,45]
[327625104,1716256271785,-1357.0,0.00045205,45]
[327625105,1716256271795,-300.0,0.00045205,7]
[327625106,1716256271804,-590.21,0.00045205,45]
[327625107,1716256271813,-4443.84,0.00045205,21]
[327625108,1716256271822,-500.0,0.00045205,45]
[327625109,1716256271831,-568.3,0.00045205,45]
[327625110,1716256271841,-500.0,0.00045205,45]
[327625111,1716256271850,-603.81,0.00045205,45]
[327625112,1716256271859,-854.22,0.00045205,45]
[327625113,1716256271868,-1298.13,0.00045205,45]
[327625114,1716256271877,-686.9,0.00045205,45]
[327625115,1716256271887,-243.59303645,0.00045205,45]
[327625116,1716256271896,-1283.07,0.00045205,45]
[327625117,1716256271906,-500.0,0.00045205,45]
[327625118,1716256271915,-1928.09,0.00045205,45]
[327625119,1716256271924,-1521.93,0.00045205,45]
[327625120,1716256271933,-500.0,0.00045205,45]
[327625121,1716256271943,-500.0,0.00045205,45]
[327625122,1716256271952,-500.0,0.00045205,45]
[327625123,1716256271961,-521.63970545,0.00045205,45]
[327625124,1716256271970,-3265.34,0.00045205,45]
[327625125,1716256271980,-500.0,0.00045205,45]
[327625126,1716256271988,-962.63,0.00045205,45]
[327625127,1716256271999,-500.0,0.00045205,45]
[327625128,1716256272009,-500.0,0.00045205,45]
[327625129,1716256272018,-19738.08,0.00045205,45]
[327625130,1716256272027,-500.0,0.00045205,45]
[327625131,1716256272037,-500.0,0.00045205,30]
[327625132,1716256272047,-711.64,0.00045205,45]
[327625133,1716256272056,-2017.3,0.00045205,45]
[327625134,1716256272065,-1090.23,0.00045205,45]
[327625135,1716256272074,-500.0,0.00045205,45]
[327625136,1716256272084,-1090.8,0.00045205,45]
[327625137,1716256272093,-500.0,0.00045205,45]
[327625138,1716256272102,-774.07,0.00045205,45]
[327625139,1716256272112,-500.0,0.00045205,45]
[327625140,1716256272121,-500.0,0.00045205,45]
[327625141,1716256272130,-2075.97,0.00045205,45]
[327625142,1716256272139,-500.0,0.00045205,45]
[327625143,1716256272148,-695.68,0.00045205,45]
[327625144,1716256272158,-500.0,0.00045205,45]
[327625145,1716256272167,-846.21,0.00045205,45]
[327625146,1716256272177,-500.0,0.00045205,45]
[327625147,1716256272186,-500.0,0.00045205,45]
[327625148,1716256272269,-153.0,0.00045288,2]
[327625149,1716256272278,-153.0,0.00045288,2]
[327625150,1716256272287,-153.0,0.00045288,2]
[327625151,1716256272297,-153.0,0.00045288,2]
[327625152,1716256272306,-153.0,0.00045288,2]
[327625153,1716256272315,-153.0,0.00045288,2]
[327625154,1716256272325,-160.0,0.00045305,5]
[327625155,1716256272334,-500.0,0.00045479,46]
[327625156,1716256272343,-500.0,0.00045479,7]
[327625157,1716256272352,-500.0,0.00045479,46]
[327625158,1716256272361,-767.25,0.00045479,46]
[327625159,1716256272371,-500.0,0.00045479,46]
[327625160,1716256272380,-837.43,0.00045479,46]
[327625161,1716256272389,-650.81,0.00045479,46]
[327625162,1716256272398,-500.0,0.00045479,46]
[327625163,1716256272408,-500.0,0.00045479,46]
[327625164,1716256272417,-597.94,0.00045479,46]
[327625165,1716256272426,-500.0,0.00045479,46]
[327625166,1716256272435,-193.23937387,0.00045479,46]
[327625167,1716256272445,-500.0,0.00045479,46]
[327625168,1716256272454,-500.0,0.00045479,46]
[327625169,1716256272464,-294.27474442,0.00045479,46]
[327625170,1716256272473,-500.0,0.00045479,46]
[327625171,1716256272482,-500.0,0.00045479,46]
[327625172,1716256272491,-500.0,0.00045479,46]
[327625173,1716256272501,-559.54,0.00045479,46]
[327625174,1716256272512,-622.99,0.00045479,46]
[327625175,1716256272521,-500.0,0.00045479,46]
[327625176,1716256272534,-500.0,0.00045479,46]
[327625177,1716256272543,-500.0,0.00045479,46]
[327625178,1716256272552,-303.01632465,0.00045479,46]
[327625179,1716256272562,-500.0,0.00045479,46]
[327625180,1716256272571,-500.0,0.00045479,46]
[327625181,1716256272581,-500.0,0.00045479,46]
[327625182,1716256272590,-500.0,0.00045479,46]
[327625183,1716256272599,-500.0,0.00045479,46]
[327625184,1716256272610,-789.44,0.00045479,46]
[327625185,1716256272620,-540.7,0.00045479,46]
[327625186,1716256272629,-500.0,0.00045479,46]
[327625187,1716256272638,-596.6,0.00045479,46]
[327625188,1716256272648,-500.0,0.00045479,46]
[327625189,1716256272657,-500.0,0.00045479,46]
[327625190,1716256272666,-702.31,0.00045479,46]
[327625191,1716256272675,-985.17,0.00045479,46]
[327625192,1716256272686,-1198.71,0.00045479,46]
[327625193,1716256272695,-500.0,0.00045479,2]
[327625194,1716256272705,-508.9615595,0.00045479,46]
[327625195,1716256272714,-500.0,0.00045479,46]
[327625196,1716256272723,-500.0,0.00045479,46]
[327625197,1716256272733,-889.02,0.00045479,46]
[327625198,1716256272742,-698.24,0.00045479,46]
[327625199,1716256272753,-500.0,0.00045479,46]
[327625200,1716256272762,-676.37,0.00045479,46]
[327625201,1716256272771,-500.0,0.00045479,46]
[327625202,1716256272780,-724.9,0.00045479,46]
[327625203,1716256272790,-803.48,0.00045479,46]
[327625204,1716256272799,-500.0,0.00045479,46]
[327625205,1716256272808,-500.0,0.00045479,46]
[327625206,1716256272821,-500.0,0.00045479,46]
[327625207,1716256272843,-500.0,0.00045479,46]
[327625208,1716256272859,-820.9,0.00045479,46]
[327625209,1716256272878,-500.0,0.00045479,46]
[327625210,1716256272900,-655.92,0.00045479,46]
[327625211,1716256272918,-500.0,0.00045479,46]
[327625212,1716256272936,-500.0,0.00045479,46]
[327625213,1716256272950,-500.0,0.00045479,46]
[327625214,1716256272967,-500.0,0.00045479,46]
[327625215,1716256272986,-671.89,0.00045479,46]
[327625216,1716256273006,-520.46,0.00045479,46]
[327625217,1716256273018,-500.0,0.00045479,46]
[327625218,1716256273035,-723.43,0.00045479,46]
[327625219,1716256273051,-500.0,0.00045479,46]
[327625220,1716256273067,-949.87,0.00045479,46]
[327625221,1716256273081,-500.0,0.00045479,46]
[327625222,1716256273096,-684.86,0.00045479,46]
[327625223,1716256273110,-778.84,0.00045479,46]
[327625224,1716256273125,-723.49,0.00045479,46]
[327625225,1716256273140,-500.0,0.00045479,46]
[327625226,1716256273154,-797.35,0.00045479,46]
[327625227,1716256273169,-861.17,0.00045479,46]
[327625228,1716256273184,-994.81,0.00045479,46]
[327625229,1716256273199,-736.19,0.00045479,46]
[327625230,1716256273213,-500.0,0.00045479,46]
[327625231,1716256273227,-500.0,0.00045479,46]
[327625232,1716256273242,-585.89,0.00045479,46]
[327625233,1716256273258,-798.18,0.00045479,46]
[327625234,1716256273272,-706.53,0.00045479,46]
[327625235,1716256273286,-500.0,0.00045479,46]
[327625236,1716256273300,-500.0,0.00045479,46]
[327625237,1716256273314,-500.0,0.00045479,46]
[327625238,1716256273329,-500.0,0.00045479,46]
[327625239,1716256273343,-526.95,0.00045479,46]
[327625240,1716256273358,-331.80818775,0.00045479,46]
[327625241,1716256273372,-500.0,0.00045479,46]
[327625242,1716256273387,-761.38,0.00045479,46]
[327625243,1716256273401,-699.03,0.00045479,46]
[327625244,1716256273416,-500.0,0.00045479,46]
[327625245,1716256273432,-668.01,0.00045479,46]
[327625246,1716256273447,-983.04,0.00045479,46]
[327625247,1716256273460,-509.48545316,0.00045479,46]
[327625248,1716256273469,-500.0,0.00045479,46]
[327625249,1716256273478,-500.0,0.00045479,46]
[327625250,1716256273488,-640.06,0.00045479,46]
[327625251,1716256273497,-557.05,0.00045479,46]
[327625252,1716256273506,-1324.9,0.00045479,46]
[327625253,1716256273522,-634.01,0.00045479,46]
[327625254,1716256273531,-512.82,0.00045479,46]
[327625255,1716256273541,-655.25,0.00045479,46]
[327625256,1716256273550,-500.0,0.00045479,46]
[327625257,1716256273560,-500.0,0.00045479,46]
[327625258,1716256273569,-500.0,0.00045479,46]
[327625259,1716256273579,-820.76,0.00045479,46]
[327625260,1716256273588,-500.0,0.00045479,46]
[327625261,1716256273598,-500.0,0.00045479,46]
[327625262,1716256273608,-500.0,0.00045479,46]
[327625263,1716256273797,-500.0,0.00045479,46]
[327625264,1716256273822,-505.67050637,0.00045479,46]
[327625265,1716256273835,-1050.19,0.00045479,46]
[327625266,1716256273845,-500.0,0.00045479,46]
[327625267,1716256273854,-500.0,0.00045479,46]
[327625268,1716256273863,-500.0,0.00045479,46]
[327625269,1716256273872,-500.0,0.00045479,46]
[327625270,1716256273881,-500.0,0.00045479,46]
[327625271,1716256273891,-578.19,0.00045479,46]
[327625272,1716256273901,-509.13292632,0.00045479,46]
[327625273,1716256273910,-500.0,0.00045479,14]
[327625274,1716256273920,-500.0,0.00045479,2]
[327625275,1716256273929,-868.84,0.00045479,46]
[327625276,1716256273938,-560.94,0.00045479,46]
[327625277,1716256273948,-500.0,0.00045479,46]
[327625278,1716256273957,-500.0,0.00045479,46]
[327625279,1716256273967,-500.0,0.00045479,46]
[327625280,1716256273976,-3015.8,0.00045479,46]
[327625281,1716256273985,-500.0,0.00045479,120]
[327625282,1716256273995,-742.5,0.00045479,46]
[327625283,1716256274005,-1312.06,0.00045479,46]
[327625284,1716256274014,-500.0,0.00045479,46]
[327625285,1716256274023,-672.9,0.00045479,46]
[327625286,1716256274033,-500.0,0.00045479,46]
[327625287,1716256274042,-1721.54,0.00045479,46]
[327625288,1716256274051,-537.17,0.00045479,46]
[327625289,1716256274061,-1288.56,0.00045479,46]
[327625290,1716256274070,-500.0,0.00045479,46]
[327625291,1716256274079,-2966.04,0.00045479,46]
[327625292,1716256274088,-500.0,0.00045479,46]
[327625293,1716256274098,-800.58,0.00045479,46]
[327625294,1716256274107,-519.32,0.00045479,46]
[327625295,1716256274117,-1101.76,0.00045479,46]
[327625296,1716256274127,-571.16,0.00045479,46]
[327625297,1716256274136,-3000.0,0.00045479,30]
[327625298,1716256274146,-500.0,0.00045479,46]
[327625299,1716256274156,-679.77,0.00045479,46]
[327625300,1716256274166,-500.0,0.00045479,46]
[327625301,1716256274175,-500.0,0.00045479,46]
[327625302,1716256274184,-3098.74,0.00045479,46]
[327625303,1716256274194,-573.79,0.00045479,46]
[327625304,1716256274203,-740.22,0.00045479,46]
[327625305,1716256274212,-500.0,0.00045479,46]
[327625306,1716256274222,-946.03,0.00045479,46]
[327625307,1716256274230,-520.3,0.00045479,46]
[327625308,1716256274240,-500.0,0.00045479,46]
[327625309,1716256274250,-683.12,0.00045479,46]
[327625310,1716256274258,-1857.09,0.00045479,46]
[327625311,1716256274267,-815.0,0.00045479,46]
[327625312,1716256274276,-500.0,0.00045479,46]
[327625313,1716256274285,-504.58,0.00045479,46]
[327625314,1716256274295,-725.35,0.00045479,46]
[327625315,1716256274305,-1095.12,0.00045479,46]
[327625316,1716256274315,-758.0,0.00045479,46]
[327625317,1716256274324,-10687.91,0.00045479,46]
[327625318,1716256274334,-3071.22,0.00045479,7]
[327625319,1716256274343,-1953.62,0.00045479,46]
[327625320,1716256274352,-568.58126086,0.00045479,46]
[327625321,1716256274362,-621.32,0.00045479,46]
[327625322,1716256274371,-871.95,0.00045479,7]
[327625323,1716256274381,-711.26,0.00045479,46]
[327625324,1716256274390,-500.0,0.00045479,46]
[327625325,1716256274399,-779.29,0.00045479,46]